bitfinex-derivatives/quotes_SOLF0:USTF0_20250311
["timestamp","ask_amount","ask_price","bid_price","bid_amount"]
[1741678465043,8.119,123.21,123.17,32.16]
[1741678465342,0.05907634,123.2,123.17,32.22175019]
[1741678465742,0.05907634,123.2,123.17,40.34275019]
[1741678467546,0.05907634,123.2,123.17,0.06175019]
[1741678468548,0.05907634,123.2,123.17,5.019e-05]
[1741678469546,8.1202,123.19,123.17,5.019e-05]
[1741678470048,0.05907634,123.2,123.17,5.019e-05]
[1741678470242,8.1202,123.19,123.17,5.019e-05]
[1741678471140,0.05907634,123.2,123.17,5.019e-05]
[1741678471836,8.1202,123.19,123.17,5.019e-05]
[1741678472236,0.05907634,123.2,123.17,5.019e-05]
[1741678472441,8.1204,123.18,123.17,5.019e-05]
[1741678473549,8.17837634,123.2,123.17,5.019e-05]
[1741678474645,0.05907634,123.2,123.17,5.019e-05]
[1741678475350,0.05907634,123.2,123.17,6.30945019]
[1741678475944,32.16,123.19,123.17,5.019e-05]
[1741678476253,32.81907634,123.2,123.17,5.019e-05]
[1741678476448,8.1203,123.19,123.17,5.019e-05]
[1741678477451,8.1204,123.18,123.17,5.019e-05]
[1741678478444,0.05907634,123.2,123.17,32.68005019]
[1741678478650,8.44039457,123.28,123.18,1.9928]
[1741678478850,44.51633243,123.29,123.18,1.9928]
[1741678479046,44.51633243,123.29,123.18,4.087]
[1741678479248,8.1176,123.23,123.18,4.087]
[1741678479547,300.82,123.26,123.18,32.94]
[1741678479852,8.1184,123.21,123.19,0.05927116]
[1741678480047,0.05563255,123.22,123.19,0.05927116]
[1741678480448,8.1191,123.2,123.19,0.05927116]
[1741678482356,8.119,123.21,123.19,0.05927116]
[1741678482553,0.05563255,123.22,123.19,0.05927116]
[1741678484057,8.1191,123.2,123.19,0.05927116]
[1741678484650,0.05563255,123.22,123.19,0.05927116]
[1741678484948,8.1186,123.21,123.19,0.05927116]
[1741678485352,8.1191,123.2,123.19,0.05927116]
[1741678487057,8.1187,123.21,123.19,0.05927116]
[1741678487256,0.05563255,123.22,123.19,0.05927116]
[1741678487754,8.1184,123.21,123.19,0.05927116]
[1741678488257,8.17393255,123.22,123.19,0.05927116]
[1741678489760,8.119,123.21,123.19,0.05927116]
[1741678490057,0.05563255,123.22,123.19,0.05927116]
[1741678490255,8.1191,123.2,123.19,0.05927116]
[1741678492153,0.05563255,123.22,123.19,0.05927116]
[1741678492348,8.1188,123.21,123.19,0.05927116]
[1741678492554,0.05563255,123.22,123.19,0.05927116]
[1741678493662,8.1188,123.21,123.19,0.05927116]
[1741678493857,0.05563255,123.22,123.19,0.05927116]
[1741678494851,8.1191,123.2,123.19,0.05927116]
[1741678495261,0.05563255,123.22,123.19,0.05927116]
[1741678495962,8.17393255,123.22,123.19,0.05927116]
[1741678496161,0.05563255,123.22,123.19,0.05927116]
[1741678497461,8.1185,123.21,123.19,0.05927116]
[1741678498361,8.1191,123.2,123.19,0.05927116]
[1741678498763,8.1191,123.2,123.19,7.116e-05]
[1741678499058,40.5191,123.2,123.19,7.116e-05]
[1741678501361,8.1191,123.2,123.19,7.116e-05]
[1741678503163,8.1187,123.21,123.19,7.116e-05]
[1741678503362,11.09083028,123.24,123.19,7.116e-05]
[1741678503565,133.39300611,123.26,123.19,7.116e-05]
[1741678503566,11.09083028,123.26,123.19,26.36793136]
[1741678503966,11.09083028,123.26,123.21,8.118]
[1741678504168,11.09083028,123.26,123.22,32.4]
[1741678504468,8.1159,123.25,123.22,32.4]
[1741678504767,8.17567211,123.25,123.23,0.05865526]
[1741678507570,0.05977211,123.25,123.23,0.05865526]
[1741678509072,8.1165,123.24,123.23,0.05865526]
[1741678509876,8.1184,123.21,123.17,40.4408]
[1741678510179,32.28,123.26,123.17,32.32]
[1741678510477,8.1177,123.23,123.18,8.12]
[1741678510971,12.1167,123.27,123.19,0.05321991]
[1741678511171,12.1167,123.27,123.18,22.1831602]
[1741678511172,32.32,123.31,123.21,22.1831602]
[1741678511377,36.3218,123.31,123.21,22.1831602]
[1741678511872,36.3218,123.31,123.21,30.3011602]
[1741678512277,8.1158,123.26,123.24,0.05259727]
[1741678512779,0.05593799,123.27,123.24,0.05259727]
[1741678512966,0.05593799,123.27,123.24,8.16899727]
[1741678513770,0.05593799,123.27,123.24,0.05259727]
[1741678514688,8.17083799,123.27,123.24,0.05259727]
[1741678514884,32.39593799,123.27,123.15,209.94891375]
[1741678515085,24.2331602,123.26,123.15,209.94891375]
[1741678515280,32.52,123.25,123.15,209.94891375]
[1741678515482,32.52,123.25,123.15,191.0]
[1741678515690,34.5575,123.25,123.15,191.0]
[1741678515890,34.5575,123.25,123.15,199.122]
[1741678516089,0.05807166,123.21,123.19,0.05152956]
[1741678516391,8.1191,123.2,123.19,0.05152956]
[1741678516984,0.05807166,123.21,123.19,0.05152956]
[1741678518179,32.6,123.26,123.19,0.05152956]
[1741678518383,32.6,123.26,123.19,4.15012956]
[1741678518588,32.62,123.28,123.19,4.15012956]
[1741678518785,8.1162,123.25,123.19,4.0986]
[1741678519286,8.1162,123.25,123.21,0.05446552]
[1741678519493,0.0534245,123.23,123.21,0.05446552]
[1741678519879,32.84,123.31,123.21,0.05446552]
[1741678520086,22.1831602,123.29,123.19,37.0186]
[1741678520287,6.1099,123.28,123.19,4.0986]
[1741678520590,8.1178,123.22,123.19,4.0986]
[1741678520991,0.05803243,123.22,123.19,4.15501601]
[1741678521389,0.05803243,123.22,123.19,0.05641601]
[1741678522591,8.1191,123.2,123.19,0.05641601]
[1741678523194,8.1213,123.17,123.14,2.0823]
[1741678523399,32.92,123.18,123.11,1.9882]
[1741678523593,32.92,123.18,123.11,10.1131]
[1741678523989,8.1216,123.17,123.11,1.9882]
[1741678524188,32.92,123.18,123.11,1.9882]
[1741678524490,0.05665213,123.15,123.13,0.05745845]
[1741678524887,267.78,123.24,123.13,2.49745845]
[1741678525089,8.1173,123.23,123.13,22.1831602]
[1741678525394,267.78,123.24,123.18,8.1198]
[1741678525593,275.897,123.24,123.18,8.1198]
[1741678525798,275.897,123.24,123.17,33.04]
[1741678525990,267.78,123.24,123.19,8.1193]
[1741678526190,0.05931527,123.22,123.19,0.05971026]
[1741678528194,8.17751527,123.22,123.19,0.05971026]
[1741678528498,0.05931527,123.22,123.19,0.05971026]
[1741678528796,0.05931527,123.22,123.19,8.17901026]
[1741678530002,0.05931527,123.22,123.2,8.1189]
[1741678530494,0.05931527,123.22,123.19,0.05971026]
[1741678532690,0.05931527,123.22,123.19,8.17941026]
[1741678533095,0.05931527,123.22,123.19,0.05971026]
[1741678533492,8.1184,123.21,123.19,0.05971026]
[1741678533998,0.05931527,123.22,123.19,0.05971026]
[1741678534196,22.24247547,123.22,123.1,89.13467242]
[1741678534589,22.1831602,123.22,123.1,89.13467242]
[1741678535401,0.061623,123.17,123.15,0.06094183]
[1741678535698,6.1959,123.23,123.16,32.96]
[1741678535894,6.1959,123.23,123.16,41.0814]
[1741678535895,0.05708561,123.17,123.16,41.0814]
[1741678536093,8.1188,123.21,123.16,41.0814]
[1741678536298,0.06259552,123.18,123.16,41.0814]
[1741678536597,6.1959,123.23,123.16,41.0814]
[1741678536798,6.1959,123.23,123.16,41.13892632]
[1741678536999,8.17053946,123.21,123.16,41.13892632]
[1741678537295,0.05163946,123.21,123.16,0.05752632]
[1741678538100,8.1202,123.19,123.16,0.05752632]
[1741678538402,0.05163946,123.21,123.16,0.05752632]
[1741678539598,8.1195,123.2,123.16,0.05752632]
[1741678540192,8.1195,123.2,123.16,8.17922632]
[1741678540695,0.05163946,123.21,123.16,8.17922632]
[1741678540891,0.05163946,123.21,123.17,8.121]
[1741678541096,8.17013946,123.21,123.17,8.121]
[1741678541500,0.05163946,123.21,123.16,8.17902632]
[1741678541700,8.1198,123.19,123.16,8.17902632]
[1741678542002,8.1198,123.19,123.16,0.05752632]
[1741678542204,8.1205,123.18,123.16,0.05752632]
[1741678542502,39.1559,123.23,123.16,0.05752632]
[1741678542703,0.05735753,123.18,123.16,0.05752632]
[1741678542902,39.1559,123.23,123.16,0.05752632]
[1741678543297,0.05649723,123.21,123.16,0.05752632]
[1741678544699,8.1211,123.17,123.16,2.632e-05]
[1741678546702,0.05200251,123.18,123.16,2.632e-05]
[1741678547011,8.17270251,123.18,123.16,2.632e-05]
[1741678547307,0.05200251,123.18,123.16,2.632e-05]
[1741678547508,8.1211,123.17,123.16,2.632e-05]
[1741678554214,8.17250251,123.18,123.16,2.632e-05]
[1741678555013,0.05200251,123.18,123.16,2.632e-05]
[1741678558310,40.7211,123.17,123.16,2.632e-05]
[1741678558910,8.125,123.12,123.07,8.1274]
[1741678559118,32.68,123.12,123.05,89.13467242]
[1741678559818,8.1258,123.1,123.05,89.13467242]
[1741678560114,0.06184884,123.09,123.06,0.05664416]
[1741678560318,8.1277,123.07,123.06,0.05664416]
[1741678560616,32.74184884,123.09,123.06,0.05664416]
[1741678560911,0.06184884,123.09,123.06,0.05664416]
[1741678561915,0.06184884,123.09,123.06,8.18484416]
[1741678562123,0.06184884,123.09,123.06,0.05664416]
[1741678563022,0.06184884,123.09,123.06,8.18454416]
[1741678563213,0.06184884,123.09,123.06,0.05664416]
[1741678564016,8.18874884,123.09,123.06,0.05664416]
[1741678564317,0.06184884,123.09,123.06,0.05664416]
[1741678564818,32.86184884,123.09,123.01,54.9831602]
[1741678565024,32.86184884,123.09,123.01,22.1831602]
[1741678565314,32.8,123.09,123.01,54.9831602]
[1741678565709,32.8,123.09,123.01,63.1143602]
[1741678565913,0.06057125,123.06,123.04,0.05908648]
[1741678566315,8.129,123.05,123.04,0.05908648]
[1741678566523,0.06057125,123.06,123.04,0.05908648]
[1741678567324,8.18907125,123.06,123.04,0.05908648]
[1741678567621,0.06057125,123.06,123.04,0.05908648]
[1741678567817,0.06057125,123.06,123.05,8.129]
[1741678568023,54.9831602,123.15,123.04,0.05908648]
[1741678568226,54.9831602,123.15,123.03,32.74]
[1741678568420,8.1268,123.09,123.05,8.1288]
[1741678568616,8.1268,123.09,123.06,32.82]
[1741678569118,0.05465509,123.09,123.06,32.87945367]
[1741678571124,6.3484,123.17,123.07,4.0654]
[1741678571322,276.0035,123.14,123.1,8.1253]
[1741678571623,6.3484,123.17,123.1,32.74]
[1741678571827,4.1858,123.17,123.1,32.74]
[1741678572228,0.06248615,123.15,123.12,0.0543998]
[1741678572527,8.1235,123.14,123.12,0.0543998]
[1741678573030,0.06248615,123.15,123.12,0.0543998]
[1741678573728,8.1235,123.14,123.12,0.0543998]
[1741678573926,0.06248615,123.15,123.13,32.7]
[1741678574831,8.18538615,123.15,123.13,32.7]
[1741678575625,8.1231,123.14,123.13,32.7]
[1741678575925,0.06248615,123.15,123.13,32.7]
[1741678576325,6.3362,123.22,123.13,38.7858]
[1741678576726,300.68,123.2,123.12,32.64]
[1741678577434,0.05602633,123.17,123.15,0.06040467]
[1741678577726,32.69602633,123.17,123.15,0.06040467]
[1741678578028,8.1217,123.16,123.15,0.06040467]
[1741678578631,8.1223,123.16,123.1,32.62]
[1741678578832,32.64,123.17,123.11,8.1244]
[1741678579132,8.1222,123.16,123.11,8.1244]
[1741678579731,0.05233777,123.15,123.12,8.18527906]
[1741678580236,0.05233777,123.15,123.12,0.06097906]
[1741678581129,8.1235,123.14,123.12,0.06097906]
[1741678581733,0.05233777,123.15,123.12,0.06097906]
[1741678582034,32.62,123.14,123.06,32.62]
[1741678582234,8.1262,123.1,123.06,8.1281]
[1741678582732,32.62,123.14,123.05,32.62]
[1741678583130,0.05983453,123.11,123.08,0.05450612]
[1741678583524,268.04,123.2,123.08,54.85766632]
[1741678583833,268.04,123.2,123.09,2.0729]
[1741678584129,268.04,123.2,123.1,32.7]
[1741678584334,268.04,123.2,123.11,22.1831602]
[1741678584525,268.04,123.2,123.11,24.1564602]
[1741678584729,0.0551747,123.17,123.14,0.05519943]
[1741678585135,8.1221,123.16,123.14,0.05519943]
[1741678585335,0.0551747,123.17,123.14,0.05519943]
[1741678585742,8.1219,123.16,123.14,0.05519943]
[1741678585937,0.0551747,123.17,123.14,0.05519943]
[1741678586235,8.1768747,123.17,123.14,0.05519943]
[1741678586436,0.0551747,123.17,123.14,0.05519943]
[1741678586825,8.1221,123.16,123.14,0.05519943]
[1741678587234,0.0551747,123.17,123.14,0.05519943]
[1741678587433,8.1764747,123.17,123.14,0.05519943]
[1741678587635,0.0551747,123.17,123.14,0.05519943]
[1741678588138,8.1223,123.16,123.14,0.05519943]
[1741678589040,8.1224,123.15,123.14,0.05519943]
[1741678589541,0.0551747,123.17,123.14,0.05519943]
[1741678589842,8.1224,123.16,123.14,0.05519943]
[1741678590141,0.0551747,123.17,123.14,0.05519943]
[1741678590642,8.1224,123.15,123.14,0.05519943]
[1741678591236,32.5,123.16,123.04,211.30165463]
[1741678591431,8.1243,123.13,123.06,22.1831602]
[1741678591631,32.5,123.16,123.06,22.1831602]
[1741678591841,8.1236,123.14,123.06,22.1831602]
[1741678592240,32.5,123.16,123.09,8.1258]
[1741678592546,0.05852065,123.11,123.09,8.18051483]
[1741678592736,8.1238,123.13,123.09,8.18051483]
[1741678593239,8.18529277,123.12,123.09,0.05471483]
[1741678593745,0.06089277,123.12,123.09,0.05471483]
[1741678595935,8.18549277,123.12,123.09,0.05471483]
[1741678599349,8.1251,123.11,123.09,0.05471483]
[1741678599537,0.06089277,123.12,123.09,0.05471483]
[1741678599944,8.18569277,123.12,123.09,0.05471483]
[1741678601440,0.06089277,123.12,123.09,0.05471483]
[1741678602144,8.18579277,123.12,123.09,0.05471483]
[1741678603747,8.18579277,123.12,123.09,8.18091483]
[1741678606647,0.06089277,123.12,123.11,8.125]
[1741678607242,0.06089277,123.12,123.1,32.4]
[1741678607748,0.06089277,123.12,123.09,0.05471483]
[1741678607946,0.06089277,123.12,123.1,8.1256]
[1741678609043,0.06089277,123.12,123.11,8.125]
[1741678609444,0.06089277,123.12,123.09,32.41471483]
[1741678609755,0.06089277,123.12,123.1,8.1253]
[1741678610247,0.06089277,123.12,123.11,8.125]
[1741678611149,0.06089277,123.12,123.1,8.1256]
[1741678611650,0.06089277,123.12,123.09,32.41471483]
[1741678611846,8.18529277,123.12,123.09,0.05471483]
[1741678612051,0.06089277,123.12,123.09,0.05471483]
[1741678612347,0.06089277,123.12,123.1,32.26]
[1741678613352,0.06089277,123.12,123.11,8.125]
[1741678616062,0.06089277,123.12,123.1,32.26]
[1741678616656,0.06089277,123.12,123.09,0.05471483]
[1741678617459,0.06089277,123.12,123.1,8.1254]
[1741678617665,0.06089277,123.12,123.09,0.05471483]
[1741678618458,0.06089277,123.12,123.09,8.18071483]
[1741678619959,267.98,123.18,123.1,32.2]
[1741678620165,52.98230889,123.22,123.14,13.88077302]
[1741678620364,44.51633243,123.22,123.16,13.88077302]
[1741678620554,44.51633243,123.22,123.18,13.88077302]
[1741678620753,44.51633243,123.22,123.19,32.52]
[1741678621155,44.57494074,123.22,123.19,32.57238596]
[1741678622363,38.00273243,123.3,123.2,24.28576666]
[1741678622766,38.00273243,123.3,123.23,22.15446666]
[1741678622966,38.00273243,123.3,123.24,32.54]
[1741678623570,0.05969197,123.28,123.26,0.0599039]
[1741678623769,0.05969197,123.28,123.21,32.68]
[1741678623970,8.1148,123.27,123.26,0.05503704]
[1741678624274,32.77969197,123.28,123.21,32.68]
[1741678624567,2.0339,123.26,123.21,32.68]
[1741678625467,0.06267702,123.25,123.22,0.05862233]
[1741678627863,8.1171,123.23,123.22,0.05862233]
[1741678628265,34.83457702,123.25,123.22,0.05862233]
[1741678628467,8.1166,123.24,123.22,0.05862233]
[1741678629273,8.1165,123.24,123.22,0.05862233]
[1741678630067,8.1171,123.23,123.22,0.05862233]
[1741678630772,36.94787702,123.25,123.18,32.62]
[1741678630967,36.8852,123.25,123.18,32.62]
[1741678631368,8.1189,123.21,123.18,32.62]
[1741678631770,8.17071485,123.21,123.18,32.68065777]
[1741678632071,0.05181485,123.21,123.18,32.68065777]
[1741678632767,8.17071485,123.21,123.18,32.68065777]
[1741678632966,0.05181485,123.21,123.18,32.68065777]
[1741678634984,0.05181485,123.21,123.18,40.80105777]
[1741678635275,0.05181485,123.21,123.18,32.68065777]
[1741678635776,8.1196,123.2,123.18,32.68065777]
[1741678635976,0.05181485,123.21,123.18,32.68065777]
[1741678636874,1.485e-05,123.21,123.18,32.68065777]
[1741678638183,1.485e-05,123.21,123.2,8.1191]
[1741678639676,1.485e-05,123.21,123.2,10.5591]
[1741678639976,64.23274988,124.19,123.2,2.44]
[1741678639977,4.0139,123.3,123.2,2.44]
[1741678640177,4.0139,123.3,123.22,22.15446666]
[1741678640366,8.1138,123.29,123.22,22.15446666]
[1741678640568,8.1138,123.29,123.24,8.116]
[1741678640868,4.0139,123.3,123.25,32.34]
[1741678641073,0.05576985,123.28,123.25,32.397143]
[1741678641273,0.05576985,123.28,123.26,8.1151]
[1741678641568,0.05576985,123.28,123.25,32.397143]
[1741678644186,0.05576985,123.28,123.25,40.512943]
[1741678644482,0.05576985,123.28,123.22,24.23226666]
[1741678644483,32.27576985,123.28,123.16,22.15446666]
[1741678644671,32.22,123.28,123.18,8.1201]
[1741678644878,32.22,123.28,123.17,36.5349]
[1741678645179,32.22,123.28,123.19,22.15446666]
[1741678645376,8.1148,123.27,123.22,8.1173]
[1741678645685,36.3139,123.3,123.2,32.3]
[1741678645981,8.17528937,123.26,123.23,0.05423824]
[1741678646681,0.06008937,123.26,123.23,0.05423824]
[1741678647182,8.1158,123.25,123.23,0.05423824]
[1741678648077,8.1165,123.24,123.23,0.05423824]
[1741678651797,0.06008937,123.26,123.23,0.05423824]
[1741678652381,8.1165,123.24,123.23,0.05423824]
[1741678653781,8.1165,123.24,123.23,3.824e-05]
[1741678654478,10.121,123.24,123.23,3.824e-05]
[1741678654682,23.9799221,123.24,123.23,3.824e-05]
[1741678656287,10.121,123.24,123.23,3.824e-05]
[1741678657486,32.18008937,123.26,123.23,3.824e-05]
[1741678657689,0.06008937,123.26,123.23,3.824e-05]
[1741678657887,0.06008937,123.26,123.23,32.12003824]
[1741678658191,0.06008937,123.26,123.24,8.1165]
[1741678658387,0.06008937,123.26,123.23,32.12003824]
[1741678658890,0.06008937,123.26,123.25,8.1158]
[1741678659291,0.06008937,123.26,123.24,8.1162]
[1741678659694,0.06008937,123.26,123.23,32.12003824]
[1741678660192,0.06008937,123.26,123.24,8.1165]
[1741678660391,0.06008937,123.26,123.23,32.12003824]
[1741678660590,301.42550215,123.31,123.23,32.12003824]
[1741678660790,301.42550215,123.31,123.26,8.1147]
[1741678661088,333.54550215,123.31,123.21,32.12]
[1741678661282,333.54550215,123.31,123.22,8.1175]
[1741678661482,333.54550215,123.31,123.18,2.0061]
[1741678661793,22.23867304,123.26,123.23,0.06076368]
[1741678662086,54.35867304,123.26,123.18,34.1261]
[1741678662291,22.1772857,123.26,123.23,0.06107088]
[1741678662491,30.2925857,123.26,123.23,0.06107088]
[1741678662796,30.35249261,123.26,123.23,0.06107088]
[1741678663187,0.05990691,123.26,123.23,0.06107088]
[1741678663786,0.05990691,123.26,123.23,8.17777088]
[1741678663988,0.05990691,123.26,123.23,0.06107088]
[1741678664489,33.42550215,123.35,123.25,22.1772857]
[1741678664695,33.42550215,123.35,123.26,2.0293]
[1741678664887,33.42550215,123.35,123.27,32.12]
[1741678665088,41.53480215,123.35,123.3,8.1121]
[1741678665392,41.53480215,123.35,123.3,40.2321]
[1741678665695,0.05328197,123.34,123.31,0.06156812]
[1741678668495,8.1106,123.33,123.31,0.06156812]
[1741678668796,0.05328197,123.34,123.31,0.06156812]
[1741678668993,8.16328197,123.34,123.31,0.06156812]
[1741678670499,8.16328197,123.34,123.31,32.18156812]
[1741678670898,0.05328197,123.34,123.31,32.18156812]
[1741678671698,8.111,123.33,123.31,32.18156812]
[1741678672093,0.05328197,123.34,123.31,32.18156812]
[1741678672492,267.72,123.39,123.32,24.3431857]
[1741678672800,4.0932,123.42,123.32,26.3101857]
[1741678673098,4.0932,123.42,123.32,217.3101857]
[1741678673298,4.0932,123.42,123.35,22.1772857]
[1741678673598,4.0932,123.42,123.38,8.1069]
[1741678673599,0.06150284,123.4,123.38,8.1069]
[1741678673796,33.42550215,123.46,123.39,32.1]
[1741678674293,33.42550215,123.46,123.36,2.1546]
[1741678674498,8.1044,123.43,123.38,32.1]
[1741678675092,8.16105961,123.42,123.39,0.06084817]
[1741678675300,0.05635961,123.42,123.39,0.06084817]
[1741678675598,32.1,123.41,123.31,32.1]
[1741678675798,8.1061,123.4,123.34,8.1094]
[1741678675998,34.2346,123.41,123.33,22.1772857]
[1741678676197,34.2346,123.41,123.34,32.16]
[1741678676398,42.3404,123.41,123.35,8.1086]
[1741678676590,0.06202867,123.39,123.36,0.05753443]
[1741678677500,8.16872867,123.39,123.36,0.05753443]
[1741678677896,0.06202867,123.39,123.36,0.05753443]
[1741678678100,0.06202867,123.39,123.37,32.14]
[1741678678403,36.1,123.47,123.37,32.14]
[1741678678991,8.1053,123.41,123.37,34.2106]
[1741678679191,36.1,123.47,123.37,34.2106]
[1741678679395,36.1,123.47,123.37,34.2706]
[1741678679599,0.05811102,123.43,123.41,0.06237346]
[1741678679802,0.05811102,123.43,123.37,32.2]
[1741678681004,0.05811102,123.43,123.39,0.05543502]
[1741678681798,8.16231102,123.43,123.39,0.05543502]
[1741678682199,0.05811102,123.43,123.39,0.05543502]
[1741678682502,8.16211102,123.43,123.4,32.16]
[1741678682901,0.05811102,123.43,123.39,0.05543502]
[1741678684305,0.05811102,123.43,123.4,32.2]
[1741678684499,0.05811102,123.43,123.42,8.1046]
[1741678684697,0.05811102,123.43,123.4,32.2]
[1741678685500,0.05811102,123.43,123.42,8.1046]
[1741678685700,0.05811102,123.43,123.4,34.3249]
[1741678688010,0.05811102,123.43,123.42,8.1046]
[1741678688204,1.9615,123.47,123.4,34.3249]
[1741678689300,0.05597375,123.45,123.43,8.1039]
[1741678690607,0.05597375,123.45,123.42,0.05322823]
[1741678691403,0.05597375,123.45,123.43,8.1039]
[1741678691611,0.05597375,123.45,123.42,0.05322823]
[1741678692506,0.05597375,123.45,123.43,8.1039]
[1741678693101,0.05597375,123.45,123.42,8.15742823]
[1741678693307,0.05597375,123.45,123.42,0.05322823]
[1741678693811,0.05597375,123.45,123.43,8.1036]
[1741678694015,0.05597375,123.45,123.42,0.05322823]
[1741678694314,0.05597375,123.45,123.43,32.08]
[1741678694816,0.05597375,123.45,123.42,0.05322823]
[1741678695105,8.15917375,123.45,123.42,0.05322823]
[1741678695506,0.05597375,123.45,123.42,0.05322823]
[1741678695813,32.11597375,123.45,123.42,0.05322823]
[1741678696009,2.0154,123.44,123.42,0.05322823]
[1741678696511,8.15887375,123.45,123.42,0.05322823]
[1741678697100,8.104,123.43,123.42,0.05322823]
[1741678697302,0.05597375,123.45,123.42,0.05322823]
[1741678697814,8.1033,123.44,123.42,0.05322823]
[1741678698111,0.05597375,123.45,123.42,0.05322823]
[1741678698313,32.06,123.44,123.42,0.05322823]
[1741678699204,0.05597375,123.45,123.42,0.05322823]
[1741678699409,8.1033,123.44,123.42,0.05322823]
[1741678699809,8.104,123.43,123.42,0.05322823]
[1741678704819,0.05597375,123.45,123.42,0.05322823]
[1741678705019,8.15897375,123.45,123.42,0.05322823]
[1741678705431,40.23897375,123.45,123.42,0.05322823]
[1741678705727,8.1043,123.43,123.38,8.1069]
[1741678706224,8.1037,123.44,123.38,8.1069]
[1741678706626,32.08,123.45,123.39,8.1066]
[1741678706827,0.05866895,123.42,123.4,0.05236703]
[1741678707424,0.05866895,123.42,123.41,8.1053]
[1741678707628,1.9738,123.46,123.4,0.05236703]
[1741678708122,8.1028,123.45,123.4,8.15776703]
[1741678708328,1.9738,123.46,123.4,0.05236703]
[1741678708525,8.104,123.43,123.4,0.05236703]
[1741678709428,0.05229814,123.44,123.4,0.05236703]
[1741678711534,8.1053,123.41,123.4,0.05236703]
[1741678712235,8.1049,123.42,123.4,0.05236703]
[1741678713738,10.164,123.43,123.4,0.05236703]
[1741678713938,10.164,123.43,123.38,8.1072]
[1741678714137,2.0802,123.42,123.38,8.1072]
[1741678714338,2.0802,123.42,123.39,8.1065]
[1741678714534,2.0597,123.43,123.37,13.81352562]
[1741678715234,0.05124975,123.41,123.39,13.87514801]
[1741678715434,45.89352562,123.48,123.42,8.1041]
[1741678715637,47.97372562,123.48,123.42,8.1041]
[1741678715836,8.1021,123.46,123.42,8.1041]
[1741678716037,34.1602,123.48,123.43,8.1039]
[1741678716238,8.1024,123.46,123.4,32.08]
[1741678716540,0.06114615,123.44,123.42,8.15847232]
[1741678717442,0.06114615,123.44,123.42,0.05417232]
[1741678718036,8.16484615,123.44,123.42,0.05417232]
[1741678718535,8.104,123.43,123.42,0.05417232]
[1741678718737,0.06114615,123.44,123.42,0.05417232]
[1741678719342,8.16484615,123.44,123.42,0.05417232]
[1741678719936,0.06114615,123.44,123.42,0.05417232]
[1741678720239,0.06114615,123.44,123.42,32.11417232]
[1741678723840,0.06114615,123.44,123.43,8.104]
[1741678724342,0.06114615,123.44,123.42,32.11417232]
[1741678724534,0.06114615,123.44,123.43,8.104]
[1741678725942,2.0802,123.48,123.45,8.1023]
[1741678727142,2.13278628,123.48,123.45,8.16056202]
[1741678727749,10.23348628,123.48,123.45,0.05826202]
[1741678728348,8.1015,123.47,123.45,0.05826202]
[1741678728547,48.0063119,123.48,123.45,0.05826202]
[1741678728741,2.0954,123.47,123.45,0.05826202]
[1741678728947,2.0954,123.47,123.4,2.1702]
[1741678728948,2.0954,123.47,123.4,32.06]
[1741678729249,2.0954,123.47,123.4,40.1656]
[1741678729550,13.81352562,123.46,123.38,32.06]
[1741678730247,0.06095025,123.43,123.41,0.05147538]
[1741678730750,0.06095025,123.43,123.41,32.11147538]
[1741678731751,0.06095025,123.43,123.41,40.21637538]
[1741678731943,0.06095025,123.43,123.41,32.11147538]
[1741678732143,0.06095025,123.43,123.41,40.21637538]
[1741678732351,0.06095025,123.43,123.41,32.11147538]
[1741678732546,0.06095025,123.43,123.41,0.05147538]
[1741678732746,8.16505025,123.43,123.41,0.05147538]
[1741678733049,0.06095025,123.43,123.41,0.05147538]
[1741678734650,8.16505025,123.43,123.41,0.05147538]
[1741678735348,0.06095025,123.43,123.41,0.05147538]
[1741678736249,8.16495025,123.43,123.41,0.05147538]
[1741678738249,0.06095025,123.43,123.41,8.15677538]
[1741678738646,0.06095025,123.43,123.41,0.05147538]
[1741678738849,8.16535025,123.43,123.41,0.05147538]
[1741678739853,0.06095025,123.43,123.41,0.05147538]
[1741678740053,8.1046,123.42,123.41,0.05147538]
[1741678740354,0.06095025,123.43,123.41,0.05147538]
[1741678740560,8.16525025,123.43,123.41,0.05147538]
[1741678740854,0.06095025,123.43,123.41,0.05147538]
[1741678741055,8.16525025,123.43,123.41,0.05147538]
[1741678741654,0.06095025,123.43,123.41,0.05147538]
[1741678744152,2.0954,123.47,123.42,32.06]
[1741678744353,2.0954,123.47,123.43,8.1037]